fUSD/lending_fUSD_20250220
["ID","MTS","AMOUNT","RATE_DAILY","PERIOD"]
[353788479,1740048665140,-254.06424083,0.00011041,2]
[353788480,1740048665175,-245.93575917,0.00011041,2]
[353788481,1740048665185,-500.0,0.00011041,2]
[353788482,1740048665195,-96.63716181,0.00011041,2]
[353788483,1740048665207,-408.73654909,0.00011041,2]
[353788484,1740048665217,-194.06345091,0.00011041,2]
[353788485,1740048829649,725.57,8.307e-05,2]
[353788486,1740048910677,2000.0,0.000205,120]
[353788487,1740049017845,2000.0,0.000205,120]
[353788490,1740049250594,158.66,8.767e-05,2]
[353788491,1740049375953,4000.0,0.000205,120]
[353788492,1740049451811,8000.0,0.000205,120]
[353788493,1740049484541,6000.0,0.000205,120]
[353788495,1740049506492,6000.0,0.000205,120]
[353788496,1740049523509,5305.24721196,0.000205,120]
[353788497,1740049593786,4000.0,0.000205,120]
[353788499,1740049612292,4000.0,0.000205,120]
[353788500,1740049661764,4000.0,0.000205,120]
[353788501,1740049675734,4000.0,0.000205,120]
[353788502,1740049732270,4000.0,0.000205,120]
[353788507,1740049753122,4000.0,0.000205,120]
[353788510,1740049775833,3648.41878249,0.000205,120]
[353788516,1740049832063,-172.18,9.895e-05,2]
[353788517,1740049832073,-300.0,0.00010223,2]
[353788518,1740049832088,-499.64,0.00010224,2]
[353788519,1740049832097,-54.91024974,0.00010224,2]
[353788520,1740049832116,-437.98975026,0.00010224,2]
[353788521,1740049832126,-494.96,0.00010224,2]
[353788522,1740049832136,-505.76,0.00010224,2]
[353788523,1740049832146,-60.07974702,0.00010224,2]
[353788524,1740049832157,-448.23025298,0.00010224,2]
[353788525,1740049832166,-127.92350877,0.00010224,2]
[353788526,1740049832178,-378.81649123,0.00010224,2]
[353788527,1740049832187,-508.99,0.00010224,2]
[353788528,1740049832197,-500.99,0.00010224,2]
[353788529,1740049832207,-506.21,0.00010224,2]
[353788530,1740049832216,-500.96,0.00010224,2]
[353788531,1740049832225,-502.41,0.00010224,2]
[353788532,1740049832235,-502.84,0.00010224,2]
[353788533,1740049832244,-501.12,0.00010224,2]
[353788534,1740049832254,-509.13,0.00010224,2]
[353788535,1740049832263,-505.76,0.00010224,2]
[353788536,1740049832273,-496.82,0.00010224,2]
[353788537,1740049832282,-501.92,0.00010224,2]
[353788538,1740049832291,-493.3,0.00010224,2]
[353788539,1740049832300,-509.81,0.00010224,2]
[353788540,1740049832309,-508.01,0.00010224,2]
[353788541,1740049832319,-508.55,0.00010224,2]
[353788542,1740049832328,-490.77,0.00010224,2]
[353788543,1740049832337,-504.52,0.00010224,2]
[353788544,1740049832347,-492.79,0.00010224,2]
[353788545,1740049832356,-494.74,0.00010224,2]
[353788546,1740049832366,-494.47,0.00010224,2]
[353788547,1740049832375,-498.47,0.00010225,2]
[353788548,1740049832385,-495.92,0.00010225,2]
[353788549,1740049832395,-503.77,0.00010225,2]
[353788550,1740049832405,-498.46,0.00010225,2]
[353788551,1740049832415,-498.89,0.00010225,2]
[353788552,1740049832424,-505.9,0.00010225,2]
[353788553,1740049832434,-5719.64,0.00010225,2]
[353788554,1740049832443,-295.36,0.00010235,2]
[353788555,1740049832452,-1000.0,0.00010272,2]
[353788556,1740049832462,-494.7,0.00010272,2]
[353788557,1740049832471,-509.2,0.00010272,2]
[353788558,1740049832481,-490.12,0.00010272,2]
[353788559,1740049832491,-503.13,0.00010272,2]
[353788560,1740049832500,-502.0,0.00010301,2]
[353788561,1740049832511,-725.57,0.00010571,2]
[353788562,1740049832520,-559.31319206,0.00010758,2]
[353788563,1740049832531,-495.91,0.00010758,2]
[353788564,1740049832540,-493.31,0.00010758,2]
[353788565,1740049832550,-325.28335272,0.00010858,2]
[353788566,1740049832559,-430.203,0.00010858,2]
[353788567,1740049832569,-22119.0735,0.00010858,2]
[353788568,1740049832579,-330.5726,0.00010858,2]
[353788569,1740049832588,-1424.0,0.00010862,2]
[353788570,1740049832597,-421.44,0.00010862,2]
[353788571,1740049832606,-364.13,0.000109,2]
[353788572,1740049832615,-1757.39507,0.0001093,2]
[353788573,1740049832625,-239.0572431,0.00010957,2]
[353788574,1740049832635,-500.0,0.00010957,2]
[353788575,1740049832645,-500.0,0.00010957,2]
[353788576,1740049832655,-645.3803453,0.00010958,2]
[353788577,1740049832664,-423.69326434,0.00010958,2]
[353788578,1740049832674,-503.25960922,0.00010958,2]
[353788579,1740049832683,-502.91726189,0.00010958,2]
[353788580,1740049832693,-500.0,0.00010958,2]
[353788581,1740049832702,-500.0,0.00010958,2]
[353788582,1740049832716,-515.76300216,0.00010958,2]
[353788583,1740049832725,-500.0,0.00010958,2]
[353788584,1740049832735,-500.0,0.00010958,2]
[353788585,1740049832744,-500.0,0.00010958,2]
[353788586,1740049832755,-256.60924608,0.00010958,2]
[353788587,1740049832765,-504.61308577,0.00010958,2]
[353788588,1740049832774,-500.0,0.00010958,2]
[353788589,1740049832784,-228.45327663,0.00010958,2]
[353788590,1740049832795,-415.90826945,0.00010958,2]
[353788591,1740049832806,-200.4538994,0.00010958,2]
[353788592,1740049832816,-500.0,0.00010958,2]
[353788593,1740049832826,-500.0,0.00010958,2]
[353788594,1740049832836,-508.2349439,0.00010958,2]
[353788595,1740049832846,-589.59494681,0.00010958,2]
[353788596,1740049832855,-500.0,0.00010958,2]
[353788597,1740049832865,-505.78928369,0.00010958,2]
[353788598,1740049832875,-447.51880484,0.00010958,2]
[353788599,1740049832887,-505.38518357,0.00010958,2]
[353788600,1740049832896,-504.21965293,0.00010958,2]
[353788601,1740049832906,-498.85706264,0.00010958,2]
[353788602,1740049832915,-505.58776265,0.00010958,2]
[353788603,1740049832926,-375.971684,0.00010958,2]
[353788604,1740049832935,-500.0,0.00010958,2]
[353788605,1740049832945,-500.0,0.00010958,2]
[353788606,1740049832955,-245.08614,0.00010958,2]
[353788607,1740049832964,-500.0,0.00010958,2]
[353788608,1740049832975,-500.0,0.00010958,2]
[353788609,1740049832985,-506.91791129,0.00010958,2]
[353788610,1740049832995,-511.76073507,0.00010958,2]
[353788611,1740049833004,-159.17990333,0.00010958,2]
[353788612,1740049833019,-340.82009667,0.00010958,2]
[353788613,1740049833028,-461.86824385,0.00010958,2]
[353788614,1740049833041,-38.13175615,0.00010958,2]
[353788615,1740049833051,-500.0,0.00010958,2]
[353788616,1740049833061,-500.0,0.00010958,2]
[353788617,1740049833071,-505.24802267,0.00010958,2]
[353788618,1740049833081,-500.0,0.00010958,2]
[353788619,1740049833282,-500.0,0.00010958,2]
[353788620,1740049833292,-247.30871746,0.00010958,2]
[353788621,1740049833303,-545.85514354,0.00010958,2]
[353788622,1740049833313,-500.0,0.00010958,2]
[353788623,1740049833323,-519.33917594,0.00010958,2]
[353788624,1740049833333,-500.0,0.00010958,2]
[353788625,1740049833344,-534.3668477,0.00010958,2]
[353788626,1740049833353,-500.0,0.00010958,2]
[353788627,1740049833363,-500.0,0.00010958,2]
[353788628,1740049833373,-500.0,0.00010958,2]
[353788629,1740049833383,-500.0,0.00010958,2]
[353788630,1740049833393,-500.0,0.00010958,2]
[353788631,1740049833403,-500.0,0.00010958,2]
[353788632,1740049833413,-69.95391184,0.00010958,2]
[353788633,1740049833427,-430.04608816,0.00010958,2]
[353788634,1740049833436,-500.0,0.00010958,2]
[353788635,1740049833446,-500.0,0.00010958,2]
[353788636,1740049833456,-500.0,0.00010958,2]
[353788637,1740049833466,-500.0,0.00010958,2]
[353788638,1740049833475,-418.59751956,0.00010958,2]
[353788639,1740049833487,-81.40248044,0.00010958,2]
[353788640,1740049833497,-500.0,0.00010958,2]
[353788641,1740049833507,-48.08921656,0.00010958,2]
[353788642,1740049833519,-451.91078344,0.00010958,2]
[353788643,1740049833530,-263.75291407,0.00010958,2]
[353788644,1740049833542,-236.24708593,0.00010958,2]
[353788645,1740049833551,-500.0,0.00010958,2]
[353788646,1740049833561,-350.34551487,0.00010958,2]
[353788647,1740049836546,2000.0,0.000205,120]
[353788741,1740049837995,-149.65448513,0.00010958,2]
[353788743,1740049838005,-500.0,0.00010958,2]
[353788745,1740049838014,-502.91857089,0.00010958,2]
[353788747,1740049838023,-509.04552193,0.00010958,2]
[353788749,1740049838033,-500.0,0.00010958,2]
[353788751,1740049838042,-500.0,0.00010958,2]
[353788753,1740049838051,-500.0,0.00010958,2]
[353788755,1740049838061,-500.0,0.00010958,2]
[353788757,1740049838070,-500.0,0.00010958,2]
[353788759,1740049838080,-500.0,0.00010958,2]
[353788761,1740049838089,-500.0,0.00010958,2]
[353788763,1740049838098,-500.0,0.00010958,2]
[353788765,1740049838108,-451.3168404,0.00010958,2]
[353788768,1740049838128,-1.12915831,0.00010958,2]
[353788770,1740049838138,-500.0,0.00010958,2]
[353788772,1740049838147,-500.0,0.00010958,2]
[353788774,1740049838156,-253.04521595,0.00010958,2]
[353788776,1740049838165,-427.88377857,0.00010958,2]
[353788778,1740049838175,-500.0,0.00010958,2]
[353788780,1740049838184,-500.0,0.00010958,2]
[353788782,1740049838193,-500.0,0.00010958,2]
[353788784,1740049838203,-500.0,0.00010958,2]
[353788786,1740049838212,-500.0,0.00010958,2]
[353788788,1740049838222,-500.0,0.00010958,2]
[353788790,1740049838231,-500.0,0.00010958,2]
[353788792,1740049838240,-500.0,0.00010958,2]
[353788794,1740049838249,-500.0,0.00010958,2]
[353788796,1740049838259,-520.55532441,0.00010958,2]
[353788798,1740049838268,-500.0,0.00010958,2]
[353788800,1740049838277,-500.0,0.00010958,2]
[353788802,1740049838286,-500.0,0.00010958,2]
[353788804,1740049838295,-618.46688456,0.00010958,2]
[353788806,1740049838304,-500.0,0.00010958,2]
[353788808,1740049838314,-253.67602419,0.00010958,2]
[353788810,1740049838323,-500.0,0.00010958,2]
[353788812,1740049838332,-506.15281835,0.00010958,2]
[353788814,1740049838341,-500.0,0.00010958,2]
[353788816,1740049838351,-500.0,0.00010958,2]
[353788818,1740049838360,-500.0,0.00010958,2]
[353788819,1740049838369,-500.0,0.00010958,2]
[353788821,1740049838379,-516.12564004,0.00010958,2]
[353788823,1740049838389,-500.0,0.00010958,2]
[353788825,1740049838398,-500.0,0.00010958,2]
[353788827,1740049838407,-500.0,0.00010958,2]
[353788829,1740049838417,-328.55363094,0.00010958,2]
[353788831,1740049838427,-500.0,0.00010958,2]
[353788833,1740049838437,-500.0,0.00010958,2]
[353788835,1740049838447,-500.0,0.00010958,2]
[353788837,1740049838456,-500.0,0.00010958,2]
[353788839,1740049838465,-500.0,0.00010958,2]
[353788840,1740049838474,-500.0,0.00010958,2]
[353788842,1740049838483,-500.0,0.00010958,2]
[353788844,1740049838492,-500.0,0.00010958,2]
[353788845,1740049838502,-500.0,0.00010958,2]
[353788847,1740049838512,-500.0,0.00010958,2]
[353788849,1740049838522,-517.7329213,0.00010958,2]
[353788851,1740049838532,-500.0,0.00010958,2]
[353788853,1740049838541,-500.0,0.00010958,2]
[353788855,1740049838551,-500.0,0.00010958,2]
[353788857,1740049838561,-500.0,0.00010958,2]
[353788859,1740049838571,-500.0,0.00010958,2]
[353788860,1740049838580,-500.0,0.00010958,2]
[353788861,1740049838590,-500.0,0.00010958,2]
[353788862,1740049838600,-500.0,0.00010958,2]
[353788863,1740049838610,-500.0,0.00010958,2]
[353788864,1740049838619,-500.0,0.00010958,2]
[353788865,1740049838630,-327.95359524,0.00010958,2]
[353788866,1740049838639,-500.0,0.00010958,2]
[353788867,1740049838648,-500.0,0.00010958,2]
[353788868,1740049838658,-500.0,0.00010958,2]
[353788869,1740049838667,-500.0,0.00010958,2]
[353788870,1740049838676,-419.33050544,0.00010958,2]
[353788871,1740049838686,-500.0,0.00010958,2]
[353788872,1740049838695,-500.0,0.00010958,2]
[353788873,1740049838707,-500.0,0.00010958,2]
[353788874,1740049838721,-500.0,0.00010958,2]
[353788875,1740049838732,-500.0,0.00010958,2]
[353788876,1740049838741,-500.0,0.00010958,2]
[353788877,1740049838750,-500.0,0.00010958,2]
[353788878,1740049838762,-500.0,0.00010958,2]
[353788879,1740049838771,-500.0,0.00010958,2]
[353788880,1740049838781,-500.0,0.00010958,2]
[353788881,1740049838791,-500.0,0.00010958,2]
[353788882,1740049838801,-500.0,0.00010958,2]
[353788883,1740049838811,-497.18048166,0.00010958,2]
[353788884,1740049838822,-500.0,0.00010958,2]
[353788885,1740049838831,-500.0,0.00010958,2]
[353788886,1740049838840,-500.0,0.00010958,2]
[353788887,1740049838850,-500.0,0.00010958,2]
[353788888,1740049838859,-507.63385221,0.00010958,2]
[353788889,1740049838868,-500.0,0.00010958,2]
[353788890,1740049838877,-500.0,0.00010958,2]
[353788891,1740049838887,-195.97641301,0.00010958,2]
[353788892,1740049838896,-500.0,0.00010958,2]
[353788894,1740049838905,-500.0,0.00010958,2]
[353788896,1740049838914,-500.0,0.00010958,2]
[353788898,1740049838923,-500.0,0.00010958,2]
[353788900,1740049838935,-500.0,0.00010958,2]
[353788902,1740049838945,-500.0,0.00010958,2]
[353788904,1740049838955,-539.50353933,0.00010958,2]
[353788906,1740049838964,-500.0,0.00010958,2]
[353788908,1740049838973,-500.0,0.00010958,2]
[353788910,1740049838983,-500.0,0.00010958,2]
[353788912,1740049838992,-500.0,0.00010958,2]
[353788914,1740049839001,-500.0,0.00010958,2]
[353788916,1740049839011,-500.0,0.00010958,2]
[353788918,1740049839019,-500.0,0.00010958,2]
[353788919,1740049839029,-500.0,0.00010958,2]
[353788920,1740049839038,-500.0,0.00010958,2]
[353788921,1740049839048,-508.67218468,0.00010958,2]
[353788922,1740049839057,-500.0,0.00010958,2]
[353788923,1740049839066,-500.0,0.00010958,2]
[353788924,1740049839076,-500.0,0.00010958,2]
[353788925,1740049839085,-500.0,0.00010958,2]
[353788926,1740049839094,-500.0,0.00010958,2]
[353788927,1740049839104,-500.0,0.00010958,2]
[353788928,1740049839113,-500.0,0.00010958,2]
[353788929,1740049839123,-500.0,0.00010958,2]
[353788930,1740049839132,-500.0,0.00010958,2]
[353788931,1740049839143,-500.0,0.00010958,2]
[353788932,1740049839152,-500.0,0.00010958,2]
[353788933,1740049839162,-500.0,0.00010958,2]
[353788934,1740049839171,-502.76608254,0.00010958,2]
[353788935,1740049839181,-500.0,0.00010958,2]
[353788937,1740049839190,-500.0,0.00010958,2]
[353788938,1740049839200,-590.01443684,0.00010958,2]
[353788940,1740049839210,-500.0,0.00010958,2]
[353788943,1740049839225,-500.0,0.00010958,2]
[353788946,1740049839239,-500.0,0.00010958,2]
[353788948,1740049839248,-500.0,0.00010958,2]
[353788949,1740049839257,-500.0,0.00010958,2]
[353788952,1740049839267,-500.0,0.00010958,2]
[353788954,1740049839276,-500.0,0.00010958,2]
[353788955,1740049839285,-500.0,0.00010958,2]
[353788958,1740049839295,-500.0,0.00010958,2]
[353788960,1740049839305,-500.0,0.00010958,2]
[353788962,1740049839314,-500.0,0.00010958,2]
[353788964,1740049839324,-500.0,0.00010958,2]
[353788966,1740049839333,-500.0,0.00010958,2]
[353788968,1740049839343,-193.91558289,0.00010958,2]
[353788970,1740049839353,-500.0,0.00010958,2]
[353788972,1740049839362,-500.0,0.00010958,2]
[353788974,1740049839371,-500.0,0.00010958,2]
[353788976,1740049839380,-500.0,0.00010958,2]
[353788978,1740049839389,-500.0,0.00010958,2]
[353788979,1740049839399,-500.0,0.00010958,2]
[353788981,1740049839409,-500.0,0.00010958,2]
[353788983,1740049839418,-500.0,0.00010958,2]
[353788985,1740049839428,-505.51445447,0.00010958,2]
[353788987,1740049839437,-500.0,0.00010958,2]
[353788989,1740049839447,-500.0,0.00010958,2]
[353788991,1740049839456,-150.54206427,0.00010958,2]
[353788993,1740049839465,-500.0,0.00010958,2]
[353788995,1740049839475,-500.0,0.00010958,2]
[353788998,1740049839486,-503.97777418,0.00010958,2]
[353789000,1740049839496,-500.0,0.00010958,2]
[353789002,1740049839506,-500.0,0.00010958,2]
[353789004,1740049839515,-500.0,0.00010958,2]
[353789006,1740049839524,-500.0,0.00010958,2]
[353789008,1740049839534,-500.0,0.00010958,2]
[353789010,1740049839543,-500.0,0.00010958,2]
[353789012,1740049839553,-500.0,0.00010958,2]
[353789014,1740049839563,-500.0,0.00010958,2]
[353789015,1740049839572,-506.65341992,0.00010958,2]
[353789017,1740049839582,-446.55962784,0.00010958,2]
[353789020,1740049839592,-501.76703952,0.00010958,2]
[353789022,1740049839602,-500.0,0.00010958,2]
[353789024,1740049839611,-500.0,0.00010958,2]
[353789026,1740049839621,-500.0,0.00010958,2]
[353789028,1740049839630,-515.2097745,0.00010958,2]
[353789030,1740049839640,-500.0,0.00010958,2]
[353789032,1740049839651,-500.0,0.00010958,2]
[353789034,1740049839660,-500.0,0.00010958,2]
[353789036,1740049839669,-500.0,0.00010958,2]
[353789038,1740049839679,-511.91904749,0.00010958,2]
[353789040,1740049839688,-500.0,0.00010958,2]
[353789042,1740049839698,-500.0,0.00010958,2]
[353789044,1740049839708,-500.0,0.00010958,2]
[353789046,1740049839719,-500.0,0.00010958,2]
[353789048,1740049839729,-500.0,0.00010958,2]
[353789050,1740049839739,-500.0,0.00010958,2]
[353789052,1740049839748,-500.0,0.00010958,2]
[353789054,1740049839760,-502.24184353,0.00010958,2]
[353789056,1740049839769,-500.0,0.00010958,2]
[353789058,1740049839779,-500.0,0.00010958,2]
[353789060,1740049839788,-500.0,0.00010958,2]
[353789062,1740049839797,-500.0,0.00010958,2]
[353789064,1740049839807,-500.0,0.00010958,2]
[353789066,1740049839816,-500.0,0.00010958,2]
[353789068,1740049839826,-500.0,0.00010958,2]
[353789070,1740049839836,-500.0,0.00010958,2]
[353789073,1740049839846,-500.0,0.00010958,2]
[353789075,1740049839856,-500.0,0.00010958,2]
[353789077,1740049839872,-284.94284247,0.00010958,2]
[353789079,1740049839882,-500.0,0.00010958,2]
[353789081,1740049839891,-500.0,0.00010958,2]
[353789083,1740049839901,-500.0,0.00010958,2]
[353789085,1740049839910,-500.0,0.00010958,2]
[353789087,1740049839920,-500.0,0.00010958,2]
[353789089,1740049839930,-500.0,0.00010958,2]
[353789091,1740049839939,-500.0,0.00010958,2]
[353789094,1740049839948,-515.68780297,0.00010958,2]
[353789096,1740049839958,-500.0,0.00010958,2]
[353789098,1740049839968,-500.0,0.00010958,2]
[353789100,1740049839977,-505.45780796,0.00010958,2]
[353789102,1740049839987,-514.07804016,0.00010958,2]
[353789104,1740049839996,-500.0,0.00010958,2]
[353789106,1740049840006,-500.0,0.00010958,2]
[353789108,1740049840015,-500.0,0.00010958,2]
[353789110,1740049840025,-500.0,0.00010958,2]
[353789112,1740049840035,-500.0,0.00010958,2]
[353789114,1740049840045,-500.0,0.00010958,2]
[353789116,1740049840055,-500.0,0.00010958,2]
[353789118,1740049840064,-216.77669087,0.00010958,2]
[353789120,1740049840074,-500.0,0.00010958,2]
[353789122,1740049840084,-500.0,0.00010958,2]
[353789124,1740049840093,-513.67323934,0.00010958,2]
[353789126,1740049840103,-500.0,0.00010958,2]
[353789128,1740049840112,-284.85005434,0.00010958,2]
[353789130,1740049840122,-500.0,0.00010958,2]
[353789132,1740049840132,-500.0,0.00010958,2]
[353789134,1740049840142,-500.0,0.00010958,2]
[353789136,1740049840151,-500.0,0.00010958,2]
[353789138,1740049840160,-500.0,0.00010958,2]
[353789140,1740049840169,-500.0,0.00010958,2]
[353789142,1740049840179,-378.85542533,0.00010958,2]
[353789144,1740049840188,-500.0,0.00010958,2]
[353789146,1740049840197,-500.0,0.00010958,2]
[353789148,1740049840206,-500.0,0.00010958,2]
[353789150,1740049840215,-500.0,0.00010958,2]
[353789152,1740049840225,-500.0,0.00010958,2]
[353789154,1740049840235,-500.0,0.00010958,2]
[353789156,1740049840244,-500.0,0.00010958,2]
[353789158,1740049840253,-500.0,0.00010958,2]
[353789159,1740049840263,-500.0,0.00010958,2]
[353789161,1740049840272,-500.0,0.00010958,2]
[353789163,1740049840282,-500.0,0.00010958,2]
[353789165,1740049840292,-500.0,0.00010958,2]
[353789167,1740049840303,-500.0,0.00010958,2]
[353789169,1740049840313,-500.0,0.00010958,2]
[353789171,1740049840323,-500.0,0.00010958,2]
[353789173,1740049840332,-520.10482103,0.00010958,2]
[353789175,1740049840342,-500.0,0.00010958,2]
[353789199,1740049840554,-500.0,0.00010958,2]
[353789201,1740049840564,-500.0,0.00010958,2]
[353789203,1740049840574,-500.0,0.00010958,2]
[353789205,1740049840583,-500.0,0.00010958,2]
[353789207,1740049840592,-500.0,0.00010958,2]
[353789209,1740049840602,-500.0,0.00010958,2]
[353789211,1740049840611,-500.0,0.00010958,2]
[353789213,1740049840620,-500.0,0.00010958,2]
[353789215,1740049840629,-189.42482691,0.00010958,2]
[353789217,1740049840638,-500.0,0.00010958,2]
[353789219,1740049840649,-500.0,0.00010958,2]
[353789221,1740049840659,-500.0,0.00010958,2]
[353789223,1740049840668,-500.0,0.00010958,2]
[353789225,1740049840677,-500.0,0.00010958,2]
[353789226,1740049840686,-500.0,0.00010958,2]
[353789228,1740049840695,-223.26154801,0.00010958,2]
[353789230,1740049840704,-500.0,0.00010958,2]
[353789232,1740049840716,-500.0,0.00010958,2]
[353789234,1740049840726,-500.0,0.00010958,2]
[353789236,1740049840735,-500.0,0.00010958,2]
[353789238,1740049840744,-500.0,0.00010958,2]
[353789240,1740049840753,-500.0,0.00010958,2]
[353789242,1740049840762,-500.0,0.00010958,2]
[353789244,1740049840773,-500.0,0.00010958,2]
[353789246,1740049840783,-500.0,0.00010958,2]
[353789248,1740049840791,-500.0,0.00010958,2]
[353789250,1740049840800,-500.0,0.00010958,2]
[353789252,1740049840810,-500.0,0.00010958,2]
[353789253,1740049840820,-500.0,0.00010958,2]
[353789255,1740049840829,-500.0,0.00010958,2]
[353789257,1740049840839,-500.0,0.00010958,2]
[353789259,1740049840849,-500.0,0.00010958,2]
[353789261,1740049840859,-466.19446763,0.00010958,2]
[353789263,1740049840868,-500.0,0.00010958,2]
[353789265,1740049840877,-510.48168127,0.00010958,2]
[353789267,1740049840886,-500.0,0.00010958,2]
[353789269,1740049840896,-500.0,0.00010958,2]
[353789271,1740049840906,-500.0,0.00010958,2]
[353789273,1740049840915,-500.0,0.00010958,2]
[353789275,1740049840925,-513.80879769,0.00010958,2]
[353789277,1740049840934,-187.6432973,0.00010958,2]
[353789280,1740049840943,-500.0,0.00010958,2]
[353789283,1740049840952,-500.0,0.00010958,2]
[353789286,1740049840961,-509.23467037,0.00010958,2]
[353789289,1740049840971,-500.0,0.00010958,2]
[353789292,1740049840980,-500.0,0.00010958,2]
[353789295,1740049840989,-506.27757086,0.00010958,2]
[353789298,1740049840998,-500.0,0.00010958,2]
[353789301,1740049841008,-500.0,0.00010958,2]
[353789304,1740049841017,-500.0,0.00010958,2]
[353789306,1740049841026,-500.0,0.00010958,2]
[353789307,1740049841036,-555.31827839,0.00010958,2]
[353789309,1740049841045,-500.0,0.00010958,2]
[353789311,1740049841054,-637.55401305,0.00010958,2]
[353789313,1740049841063,-500.0,0.00010958,2]
[353789315,1740049841072,-518.0710783,0.00010958,2]
[353789317,1740049841081,-500.0,0.00010958,2]
[353789319,1740049841090,-500.0,0.00010958,2]
[353789321,1740049841099,-500.0,0.00010958,2]
[353789323,1740049841108,-500.0,0.00010958,2]
[353789325,1740049841118,-500.0,0.00010958,2]
[353789327,1740049841127,-500.0,0.00010958,2]
[353789329,1740049841137,-500.0,0.00010958,2]
[353789331,1740049841147,-500.0,0.00010958,2]
[353789333,1740049841156,-500.0,0.00010958,2]
[353789335,1740049841166,-500.0,0.00010958,2]
[353789337,1740049841175,-500.0,0.00010958,2]
[353789339,1740049841185,-500.0,0.00010958,2]
[353789341,1740049841194,-500.0,0.00010958,2]
[353789343,1740049841203,-500.0,0.00010958,2]
[353789345,1740049841212,-500.0,0.00010958,2]
[353789347,1740049841222,-500.0,0.00010958,2]
[353789349,1740049841232,-500.0,0.00010958,2]
[353789351,1740049841241,-618.67949776,0.00010958,2]
[353789353,1740049841250,-500.0,0.00010958,2]
[353789355,1740049841260,-500.0,0.00010958,2]
[353789357,1740049841269,-500.0,0.00010958,2]
[353789360,1740049841279,-504.29329455,0.00010958,2]
[353789361,1740049841289,-500.0,0.00010958,2]
[353789363,1740049841299,-500.0,0.00010958,2]
[353789366,1740049841308,-500.0,0.00010958,2]
[353789367,1740049841319,-500.0,0.00010958,2]
[353789369,1740049841329,-500.0,0.00010958,2]
[353789371,1740049841338,-500.0,0.00010958,2]
[353789373,1740049841347,-500.0,0.00010958,2]
[353789375,1740049841356,-500.0,0.00010958,2]
[353789377,1740049841365,-500.0,0.00010958,2]
[353789379,1740049841375,-500.0,0.00010958,2]
[353789381,1740049841384,-500.0,0.00010958,2]
[353789383,1740049841394,-505.48692963,0.00010958,2]
[353789385,1740049841404,-500.0,0.00010958,2]
[353789387,1740049841413,-500.0,0.00010958,2]
[353789389,1740049841422,-500.0,0.00010958,2]
[353789391,1740049841431,-500.0,0.00010958,2]
[353789393,1740049841442,-500.0,0.00010958,2]
[353789395,1740049841451,-500.0,0.00010958,2]
[353789397,1740049841460,-500.0,0.00010958,2]
[353789399,1740049841469,-500.0,0.00010958,2]
[353789401,1740049841479,-500.0,0.00010958,2]
[353789403,1740049841487,-500.0,0.00010958,2]
[353789405,1740049841497,-500.0,0.00010958,2]
[353789407,1740049841506,-500.0,0.00010958,2]
[353789409,1740049841516,-500.0,0.00010958,2]